fUSD/lending_fUSD_20260409
["ID","MTS","AMOUNT","RATE_DAILY","PERIOD"]
[420165253,1775743832949,-151.0,0.00011593,2]
[420165255,1775743832959,-500.0,0.00011593,2]
[420165257,1775743832968,-151.0,0.00011593,2]
[420165258,1775743832977,-500.0,0.00011593,2]
[420165259,1775743832987,-151.0,0.00011593,2]
[420165261,1775743832996,-594.61806827,0.00011593,2]
[420165264,1775743833006,-174.61919141,0.00011593,2]
[420165267,1775743833016,-151.0,0.00011593,2]
[420165269,1775743833025,-151.0,0.00011593,2]
[420165272,1775743833035,-151.0,0.00011593,2]
[420165275,1775743833045,-151.0,0.00011593,2]
[420165278,1775743833055,-151.0,0.00011593,2]
[420165281,1775743833064,-151.0,0.00011593,2]
[420165284,1775743833073,-151.0,0.00011593,2]
[420165286,1775743833084,-151.0,0.00011593,2]
[420165288,1775743833094,-151.0,0.00011593,2]
[420165290,1775743833104,-151.0,0.00011593,2]
[420165292,1775743833115,-747.11404734,0.00011593,2]
[420165294,1775743833124,-5811.18,0.000116,2]
[420165296,1775743833133,-500.0,0.00011619,2]
[420165298,1775743833143,-500.0,0.00011674,2]
[420165299,1775743833151,-2500.0,0.00011747,2]
[420165301,1775743833162,-2500.0,0.00011747,2]
[420165303,1775743833172,-2500.0,0.00011747,2]
[420165305,1775743833181,-2500.0,0.00011747,2]
[420165306,1775743833191,-2500.0,0.00011747,2]
[420165307,1775743833201,-600.0,0.00011747,2]
[420165308,1775743833211,-600.0,0.00011747,2]
[420165309,1775743833222,-600.0,0.00011747,2]
[420165310,1775743833232,-600.0,0.00011747,2]
[420165311,1775743833242,-600.0,0.00011747,2]
[420165312,1775743833253,-158.77,0.00011751,2]
[420165313,1775743833263,-721.97,0.00011991,2]
[420165314,1775743833273,-150.0,0.00012,2]
[420165315,1775743833284,-251.05876899,0.0001206,2]
[420165316,1775743833294,-164.12,0.00012104,2]
[420165317,1775743833304,-200.0,0.00012141,2]
[420165318,1775743833314,-1235.18214925,0.00012141,2]
[420165319,1775743833325,-181.08010149,0.00012141,2]
[420165320,1775743833335,-253.6054,0.00012363,2]
[420165321,1775743833345,-6304.08131767,0.00012466,2]
[420165322,1775743833355,-171.2,0.00012507,2]
[420165323,1775743833366,-255.0,0.00012658,2]
[420165324,1775743833376,-200.0,0.00012689,2]
[420165325,1775743833387,-1280.88388878,0.00012689,2]
[420165326,1775743833397,-187.78006525,0.00012689,2]
[420165327,1775743833407,-420.0,0.00012731,2]
[420165328,1775743833417,-248.86017061,0.00012731,2]
[420165329,1775743833427,-1680.0,0.00012751,2]
[420165330,1775743833439,-150.00000001,0.00012791,2]
[420165331,1775743833448,-10581.9218359,0.00012795,2]
[420165332,1775743833458,-274.11,0.00012877,2]
[420165333,1775743833469,-149619.04426722,0.00012886,2]
[420165334,1775743833482,-10352.38270547,0.00012886,2]
[420165335,1775743833494,-4828.68862731,0.00012886,2]
[420165336,1775743833504,-420.97422469,0.00012895,2]
[420165337,1775743833514,-3641.3346,0.00012986,2]
[420165338,1775743833523,-250.0,0.00013,2]
[420165339,1775743833533,-411.89891467,0.00013036,2]
[420165340,1775743833542,-282.34196659,0.00013062,2]
[420165341,1775743833552,-1591.33,0.00013068,14]
[420165342,1775743833564,-574.90767287,0.00013092,2]
[420165343,1775743833573,-472.40987105,0.00013098,2]
[420165344,1775743833582,-502.0,0.000131,2]
[420165345,1775743833591,-10581.92183581,0.0001314,2]
[420165346,1775743833600,-317.54971674,0.00013164,2]
[420165347,1775743833609,-826.67446558,0.00013208,2]
[420165348,1775743833620,-369.15412071,0.00013217,2]
[420165349,1775743833629,-200.0,0.00013237,2]
[420165350,1775743833639,-1328.27659266,0.00013237,2]
[420165351,1775743833648,-194.72792766,0.00013237,2]
[420165352,1775743833658,-270.74746472,0.00013262,2]
[420165353,1775743833668,-172.9056,0.000133,2]
[420165354,1775743833678,-5888.0,0.00013336,2]
[420165355,1775743833688,-3240.0,0.00013425,2]
[420165356,1775743833697,-5888.0,0.00013467,2]
[420165357,1775743833706,-2500.0,0.0001347,2]
[420165358,1775743833716,-5017.38640194,0.00013477,2]
[420165359,1775743833729,-1254.41808677,0.00013477,2]
[420165360,1775743833740,-4013.5402864,0.00013477,2]
[420165361,1775743833749,-1164.7266665,0.00013485,2]
[420165362,1775743833810,-778.30235021,0.00013485,2]
[420165363,1775743833822,-309.88642084,0.00013485,2]
[420165364,1775743833833,-433.39195199,0.00013485,2]
[420165365,1775743833861,-387.105,0.00013485,2]
[420165366,1775743833872,-1615.14536651,0.00013485,2]
[420165367,1775743833885,-584.79955105,0.00013485,2]
[420165368,1775743833905,-412.77728069,0.00013485,2]
[420165369,1775743834244,-2710.18573972,0.00013485,2]
[420165395,1775743839229,-2185.6015083,0.00013485,2]
[420165398,1775743839240,-1235.50446221,0.00013502,2]
[420165401,1775743839251,-453.52806,0.00013502,2]
[420165405,1775743839264,-4198.96747779,0.00013502,2]
[420165408,1775743839274,-3000.0,0.00013518,2]
[420165411,1775743839285,-2581.303,0.0001356,2]
[420165413,1775743839295,-166.321,0.0001356,2]
[420165415,1775743839306,-2000.0,0.0001356,2]
[420165417,1775743839317,-2000.0,0.0001356,2]
[420165419,1775743839327,-216.31652221,0.00013569,2]
[420165422,1775743839340,-283.68347779,0.00013569,2]
[420165424,1775743839350,-500.0,0.00013569,2]
[420165426,1775743839360,-500.0,0.00013569,2]
[420165428,1775743839370,-500.0,0.00013569,2]
[420165430,1775743839380,-24.17529469,0.00013569,2]
[420165432,1775743839394,-475.82470531,0.00013569,2]
[420165434,1775743839404,-500.0,0.00013569,2]
[420165436,1775743839413,-281.8623004,0.00013569,2]
[420165439,1775743839429,-218.1376996,0.00013569,2]
[420165441,1775743839439,-500.0,0.00013569,2]
[420165443,1775743839450,-500.0,0.00013569,2]
[420165445,1775743839460,-500.0,0.00013569,2]
[420165447,1775743839470,-257.95746674,0.00013569,2]
[420165449,1775743839483,-242.04253326,0.00013569,2]
[420165451,1775743839493,-500.0,0.00013569,2]
[420165453,1775743839503,-8.97387799,0.00013569,2]
[420165457,1775743839529,-491.02612201,0.00013569,2]
[420165459,1775743839540,-500.0,0.00013569,2]
[420165461,1775743839550,-500.0,0.00013569,2]
[420165463,1775743839560,-500.0,0.00013569,2]
[420165465,1775743839569,-500.0,0.00013569,2]
[420165467,1775743839580,-500.0,0.00013569,2]
[420165469,1775743839590,-500.0,0.00013569,2]
[420165471,1775743839600,-500.0,0.00013569,2]
[420165473,1775743839610,-433.57679629,0.00013569,2]
[420165475,1775743839620,-19563.00344411,0.0001357,2]
[420165478,1775743839633,-1386.35636678,0.0001357,2]
[420165480,1775743839645,-496.35021739,0.0001357,2]
[420165482,1775743839657,-1612.66674481,0.0001357,2]
[420165490,1775743840822,-549.06168683,0.0001357,2]
[420165491,1775743840900,-544.2039824,0.0001357,2]
[420165492,1775743840916,-2019.91513355,0.0001357,2]
[420165493,1775743840964,-44901.47709392,0.0001357,2]
[420165494,1775743840974,-225.89373,0.00013577,2]
[420165495,1775743840984,-2000.0,0.0001358,2]
[420165496,1775743840994,-200.0,0.00013589,2]
[420165497,1775743841004,-1000.0,0.00013595,2]
[420165498,1775743841014,-1000.0,0.00013598,2]
[420165499,1775743841025,-2000.0,0.000136,2]
[420165500,1775743841035,-465.92658919,0.00013643,2]
[420165501,1775743841045,-500.0,0.00013673,2]
[420165502,1775743841055,-500.0,0.00013673,2]
[420165503,1775743841065,-500.0,0.00013673,2]
[420165504,1775743841074,-349.14987639,0.00013673,2]
[420165505,1775743841085,-500.0,0.00013673,2]
[420165506,1775743841094,-500.51505804,0.00013673,2]
[420165507,1775743841104,-500.0,0.00013673,2]
[420165508,1775743841114,-389.17525049,0.00013673,2]
[420165509,1775743841125,-500.0,0.00013673,2]
[420165510,1775743841135,-500.0,0.00013673,2]
[420165511,1775743841145,-447.120085,0.00013677,2]
[420165512,1775743841156,-151.0,0.00013696,2]
[420165513,1775743841168,-151.0,0.00013698,2]
[420165514,1775743841178,-500.0,0.00013698,2]
[420165515,1775743841188,-500.0,0.00013698,2]
[420165516,1775743841199,-500.0,0.00013698,2]
[420165517,1775743841209,-500.0,0.00013698,2]
[420165518,1775743841220,-500.0,0.00013698,2]
[420165519,1775743841230,-500.0,0.00013698,2]
[420165520,1775743841240,-500.0,0.00013698,2]
[420165521,1775743841250,-500.0,0.00013698,2]
[420165522,1775743841260,-500.0,0.00013698,2]
[420165523,1775743841270,-500.0,0.00013698,2]
[420165524,1775743841280,-500.0,0.00013698,2]
[420165525,1775743841290,-500.0,0.00013698,2]
[420165526,1775743841300,-500.0,0.00013698,2]
[420165527,1775743841311,-500.0,0.00013698,2]
[420165528,1775743841321,-500.0,0.00013698,2]
[420165529,1775743841330,-500.0,0.00013698,2]
[420165530,1775743841340,-500.0,0.00013698,2]
[420165531,1775743841350,-500.0,0.00013698,2]
[420165532,1775743841360,-500.0,0.00013698,2]
[420165533,1775743841370,-500.0,0.00013698,2]
[420165534,1775743841380,-500.0,0.00013698,2]
[420165535,1775743841390,-500.0,0.00013698,2]
[420165536,1775743841400,-500.0,0.00013698,2]
[420165537,1775743841411,-241.33400418,0.00013698,2]
[420165549,1775743843770,-258.66599582,0.00013698,2]
[420165550,1775743843781,-500.0,0.00013698,2]
[420165551,1775743843789,-529.13,0.00013698,2]
[420165552,1775743843798,-529.13,0.00013698,2]
[420165553,1775743843808,-529.13,0.00013698,2]
[420165554,1775743843818,-529.13,0.00013698,2]
[420165555,1775743843829,-500.0,0.00013698,2]
[420165556,1775743843839,-500.0,0.00013698,2]
[420165557,1775743843849,-500.0,0.00013698,2]
[420165558,1775743843859,-500.0,0.00013698,2]
[420165559,1775743843868,-500.0,0.00013698,2]
[420165560,1775743843879,-406.85460077,0.00013698,2]
[420165561,1775743843890,-500.0,0.00013698,2]
[420165562,1775743843900,-500.0,0.00013698,2]
[420165563,1775743843909,-500.0,0.00013698,2]
[420165564,1775743843920,-804.38450766,0.00013698,2]
[420165570,1775743846482,-1046.03549234,0.00013698,2]
[420165571,1775743846492,-1850.42,0.00013698,2]
[420165572,1775743846502,-1850.42,0.00013698,2]
[420165573,1775743846511,-500.0,0.00013698,2]
[420165574,1775743846521,-500.0,0.00013698,2]
[420165575,1775743846531,-500.0,0.00013698,2]
[420165576,1775743846540,-567.92650722,0.00013698,2]
[420165577,1775743846549,-500.0,0.00013699,2]
[420165578,1775743846559,-150.0,0.00013699,2]
[420165579,1775743846569,-150.64,0.00013699,2]
[420165580,1775743846579,-200.0,0.00013699,2]
[420165581,1775743846589,-151.0,0.00013699,2]
[420165582,1775743846599,-151.0,0.00013699,2]
[420165583,1775743846608,-151.0,0.00013699,2]
[420165584,1775743846618,-151.0,0.00013699,2]
[420165585,1775743846628,-151.0,0.00013699,2]
[420165586,1775743846637,-151.0,0.00013699,2]
[420165587,1775743846647,-151.0,0.00013699,2]
[420165588,1775743846657,-84.13433851,0.00013699,2]
[420165589,1775743846669,-66.86566149,0.00013699,2]
[420165590,1775743846679,-151.0,0.00013699,2]
[420165591,1775743846688,-151.0,0.00013699,2]
[420165592,1775743846698,-151.0,0.00013699,2]
[420165593,1775743846708,-151.0,0.00013699,2]
[420165594,1775743846717,-48.38433351,0.00013699,2]
[420165595,1775743846730,-102.61566649,0.00013699,2]
[420165596,1775743846739,-153.979608,0.00013699,2]
[420165597,1775743846748,-151.0,0.00013699,2]
[420165598,1775743846758,-151.0,0.00013699,2]
[420165599,1775743846769,-151.0,0.00013699,2]
[420165600,1775743846779,-151.0,0.00013699,2]
[420165601,1775743846789,-105.99472551,0.00013699,2]
[420165602,1775743846802,-45.00527449,0.00013699,2]
[420165603,1775743846811,-151.0,0.00013699,2]
[420165604,1775743846821,-118.54472551,0.00013699,2]
[420165605,1775743846838,-75.32818349,0.00013699,2]
[420165606,1775743846847,-151.970988,0.00013699,2]
[420165607,1775743846858,-151.0,0.00013699,2]
[420165608,1775743846868,-151.0,0.00013699,2]
[420165609,1775743846877,-255.890544,0.00013699,2]
[420165610,1775743846887,-151.0,0.00013699,2]
[420165611,1775743846896,-151.0,0.00013699,2]
[420165612,1775743846905,-151.0,0.00013699,2]
[420165613,1775743846914,-151.0,0.00013699,2]
[420165614,1775743846924,-151.0,0.00013699,2]
[420165616,1775743846934,-151.0,0.00013699,2]
[420165617,1775743846943,-151.0,0.00013699,2]
[420165618,1775743846953,-151.0,0.00013699,2]
[420165619,1775743846963,-151.0,0.00013699,2]
[420165620,1775743846972,-151.0,0.00013699,2]
[420165621,1775743846982,-170.124574,0.00013699,2]
[420165622,1775743846991,-185.872653,0.00013699,2]
[420165623,1775743847002,-185.872653,0.00013699,2]
[420165625,1775743847012,-185.872653,0.00013699,2]
[420165626,1775743847021,-185.872653,0.00013699,2]
[420165628,1775743847031,-185.872653,0.00013699,2]
[420165630,1775743847041,-185.872653,0.00013699,2]
[420165632,1775743847050,-185.872653,0.00013699,2]
[420165633,1775743847059,-185.872653,0.00013699,2]
[420165635,1775743847069,-185.872653,0.00013699,2]
[420165637,1775743847078,-185.872653,0.00013699,2]
[420165639,1775743847087,-185.872653,0.00013699,2]
[420165641,1775743847097,-185.872653,0.00013699,2]
[420165643,1775743847106,-151.0,0.00013699,2]
[420165644,1775743847115,-151.0,0.00013699,2]
[420165646,1775743847125,-151.0,0.00013699,2]
[420165648,1775743847134,-151.0,0.00013699,2]
[420165650,1775743847144,-201.101793,0.00013699,2]
[420165652,1775743847154,-151.0,0.00013699,2]
[420165654,1775743847163,-151.0,0.00013699,2]
[420165656,1775743847174,-151.0,0.00013699,2]
[420165658,1775743847184,-151.0,0.00013699,2]
[420165660,1775743847194,-151.0,0.00013699,2]
[420165661,1775743847203,-151.0,0.00013699,2]
[420165663,1775743847213,-151.0,0.00013699,2]
[420165665,1775743847223,-151.0,0.00013699,2]
[420165667,1775743847232,-298.263846,0.00013699,2]
[420165669,1775743847242,-151.0,0.00013699,2]
[420165671,1775743847251,-151.0,0.00013699,2]
[420165673,1775743847260,-151.0,0.00013699,2]
[420165675,1775743847270,-151.0,0.00013699,2]
[420165676,1775743847280,-151.0,0.00013699,2]
[420165678,1775743847289,-151.0,0.00013699,2]
[420165680,1775743847299,-151.0,0.00013699,2]
[420165682,1775743847309,-151.0,0.00013699,2]
[420165684,1775743847318,-245.233436,0.00013699,2]
[420165686,1775743847327,-151.0,0.00013699,2]
[420165688,1775743847337,-151.0,0.00013699,2]
[420165690,1775743847346,-151.0,0.00013699,2]
[420165691,1775743847355,-153.366639,0.00013699,2]
[420165693,1775743847365,-151.0,0.00013699,2]
[420165695,1775743847375,-151.0,0.00013699,2]
[420165697,1775743847385,-151.0,0.00013699,2]
[420165699,1775743847394,-156.596585,0.00013699,2]
[420165701,1775743847404,-200.0,0.00013699,2]
[420165703,1775743847413,-151.0,0.00013699,2]
[420165705,1775743847423,-151.0,0.00013699,2]
[420165707,1775743847433,-236.89616,0.00013699,2]
[420165708,1775743847442,-151.0,0.00013699,2]
[420165710,1775743847452,-151.0,0.00013699,2]
[420165712,1775743847464,-151.0,0.00013699,2]
[420165714,1775743847473,-151.0,0.00013699,2]
[420165716,1775743847482,-151.0,0.00013699,2]
[420165718,1775743847492,-151.0,0.00013699,2]
[420165720,1775743847501,-151.0,0.00013699,2]
[420165722,1775743847511,-151.0,0.00013699,2]
[420165724,1775743847520,-151.0,0.00013699,2]
[420165726,1775743847530,-151.0,0.00013699,2]
[420165727,1775743847539,-1496.184967,0.00013699,2]
[420165729,1775743847549,-151.0,0.00013699,2]
[420165731,1775743847559,-1496.184967,0.00013699,2]
[420165733,1775743847570,-1496.184967,0.00013699,2]
[420165735,1775743847580,-1496.184967,0.00013699,2]
[420165736,1775743847590,-1000.0,0.00013699,2]
[420165737,1775743847599,-1090.97,0.00013699,2]
[420165738,1775743847609,-1496.184967,0.00013699,2]
[420165739,1775743847618,-1496.184967,0.00013699,2]
[420165740,1775743847628,-1496.184967,0.00013699,2]
[420165741,1775743847637,-1496.184967,0.00013699,2]
[420165742,1775743847646,-1496.184967,0.00013699,2]
[420165743,1775743847656,-1496.184967,0.00013699,2]
[420165744,1775743847666,-1496.184967,0.00013699,2]
[420165745,1775743847676,-1496.184967,0.00013699,2]
[420165746,1775743847685,-151.0,0.00013699,2]
[420165747,1775743847695,-151.0,0.00013699,2]
[420165748,1775743847704,-151.0,0.00013699,2]
[420165749,1775743847713,-275.894398,0.00013699,2]
[420165750,1775743847722,-151.0,0.00013699,2]
[420165751,1775743847731,-151.0,0.00013699,2]
[420165752,1775743847740,-151.0,0.00013699,2]
[420165753,1775743847750,-151.0,0.00013699,2]
[420165754,1775743847759,-196.001961,0.00013699,2]
[420165755,1775743847769,-151.0,0.00013699,2]
[420165756,1775743847779,-151.0,0.00013699,2]
[420165757,1775743847789,-151.0,0.00013699,2]
[420165758,1775743847798,-151.0,0.00013699,2]
[420165759,1775743847808,-151.0,0.00013699,2]
[420165760,1775743847818,-151.0,0.00013699,2]
[420165761,1775743847828,-151.0,0.00013699,2]
[420165762,1775743847839,-201.08984,0.00013699,2]
[420165763,1775743847850,-178.729732,0.00013699,2]
[420165764,1775743847860,-158.632163,0.00013699,2]
[420165765,1775743847870,-151.0,0.00013699,2]
[420165766,1775743847879,-158.632163,0.00013699,2]
[420165767,1775743847898,-151.0,0.00013699,2]
[420165768,1775743847908,-158.632163,0.00013699,2]
[420165769,1775743847918,-151.0,0.00013699,2]
[420165770,1775743847927,-151.0,0.00013699,2]
[420165771,1775743847937,-151.0,0.00013699,2]
[420165772,1775743847946,-151.0,0.00013699,2]
[420165773,1775743847955,-158.632163,0.00013699,2]
[420165774,1775743847965,-158.632163,0.00013699,2]
[420165775,1775743847975,-158.632163,0.00013699,2]
[420165776,1775743847985,-151.0,0.00013699,2]
[420165777,1775743847995,-151.0,0.00013699,2]
[420165778,1775743848005,-158.632163,0.00013699,2]
[420165779,1775743848016,-151.0,0.00013699,2]
[420165780,1775743848026,-158.632163,0.00013699,2]
[420165781,1775743848037,-158.632163,0.00013699,2]
[420165782,1775743848046,-151.0,0.00013699,2]
[420165783,1775743848055,-151.0,0.00013699,2]
[420165784,1775743848066,-151.0,0.00013699,2]
[420165785,1775743848086,-151.0,0.00013699,2]
[420165786,1775743848098,-158.632163,0.00013699,2]
[420165787,1775743848107,-151.0,0.00013699,2]
[420165788,1775743848118,-158.632163,0.00013699,2]
[420165789,1775743848127,-158.632163,0.00013699,2]
[420165790,1775743848138,-151.0,0.00013699,2]
[420165791,1775743848148,-151.0,0.00013699,2]
[420165792,1775743848158,-211.863359,0.00013699,2]
[420165793,1775743848169,-151.0,0.00013699,2]
[420165794,1775743848180,-151.0,0.00013699,2]
[420165795,1775743848191,-151.0,0.00013699,2]
[420165796,1775743848200,-151.0,0.00013699,2]
[420165797,1775743848210,-151.0,0.00013699,2]
[420165798,1775743848221,-151.0,0.00013699,2]
[420165799,1775743848231,-151.0,0.00013699,2]
[420165800,1775743848243,-151.0,0.00013699,2]
[420165801,1775743848253,-151.0,0.00013699,2]
[420165802,1775743848264,-151.0,0.00013699,2]
[420165803,1775743848274,-151.0,0.00013699,2]
[420165804,1775743848284,-151.0,0.00013699,2]
[420165805,1775743848294,-151.0,0.00013699,2]
[420165806,1775743848304,-151.0,0.00013699,2]
[420165807,1775743848315,-151.0,0.00013699,2]
[420165808,1775743848325,-151.0,0.00013699,2]
[420165809,1775743848335,-151.0,0.00013699,2]
[420165810,1775743848345,-151.0,0.00013699,2]
[420165811,1775743848355,-153.521903,0.00013699,2]
[420165812,1775743848365,-151.0,0.00013699,2]
[420165813,1775743848376,-151.0,0.00013699,2]
[420165814,1775743848385,-151.0,0.00013699,2]
[420165815,1775743848395,-151.0,0.00013699,2]
[420165816,1775743848405,-151.0,0.00013699,2]
[420165817,1775743848416,-151.0,0.00013699,2]
[420165818,1775743848426,-151.0,0.00013699,2]
[420165819,1775743848437,-151.0,0.00013699,2]
[420165820,1775743848447,-293.585569,0.00013699,2]
[420165821,1775743848457,-151.0,0.00013699,2]
[420165822,1775743848467,-151.0,0.00013699,2]
[420165823,1775743848475,-151.0,0.00013699,2]
[420165824,1775743848485,-362.444081,0.00013699,2]
[420165825,1775743848494,-174.256078,0.00013699,2]
[420165826,1775743848504,-362.444081,0.00013699,2]
[420165827,1775743848514,-362.444081,0.00013699,2]
[420165828,1775743848523,-3780.0,0.00013699,2]
[420165829,1775743848532,-362.444081,0.00013699,2]
[420165830,1775743848542,-362.444081,0.00013699,2]
[420165831,1775743848551,-362.444081,0.00013699,2]
[420165832,1775743848561,-362.444081,0.00013699,2]
[420165833,1775743848571,-362.444081,0.00013699,2]
[420165834,1775743848587,-362.444081,0.00013699,2]
[420165835,1775743848597,-362.444081,0.00013699,2]
[420165836,1775743848607,-362.444081,0.00013699,2]
[420165837,1775743848617,-362.444081,0.00013699,2]
[420165838,1775743848627,-151.0,0.00013699,2]
[420165839,1775743848638,-151.0,0.00013699,2]
[420165840,1775743848648,-523.243456,0.00013699,2]
[420165841,1775743848658,-523.243456,0.00013699,2]
[420165842,1775743848669,-523.243456,0.00013699,2]
[420165843,1775743848680,-523.243456,0.00013699,2]
[420165844,1775743848690,-523.243456,0.00013699,2]
[420165845,1775743848700,-523.243456,0.00013699,2]
[420165846,1775743848710,-523.243456,0.00013699,2]
[420165847,1775743848721,-523.243456,0.00013699,2]
[420165848,1775743848730,-722.558787,0.00013699,2]
[420165849,1775743848740,-722.558787,0.00013699,2]
[420165850,1775743848751,-320.068136,0.00013699,2]
[420165851,1775743848761,-722.558787,0.00013699,2]
[420165852,1775743848771,-320.068136,0.00013699,2]
[420165853,1775743848781,-722.558787,0.00013699,2]
[420165854,1775743848792,-320.068136,0.00013699,2]
[420165855,1775743848802,-151.0,0.00013699,2]
[420165856,1775743848813,-151.0,0.00013699,2]
[420165857,1775743848822,-320.068136,0.00013699,2]
[420165858,1775743848833,-512.030409,0.00013699,2]
[420165859,1775743848843,-512.030409,0.00013699,2]
[420165860,1775743848853,-512.030409,0.00013699,2]
[420165861,1775743848864,-512.030409,0.00013699,2]
[420165862,1775743848875,-2000.0,0.00013699,2]
[420165863,1775743848885,-2000.0,0.00013699,2]
[420165864,1775743848895,-2000.0,0.00013699,2]
[420165865,1775743848905,-753.950857,0.00013699,2]
[420165866,1775743848915,-753.950857,0.00013699,2]
[420165867,1775743848924,-753.950857,0.00013699,2]
[420165868,1775743848934,-753.950857,0.00013699,2]
[420165869,1775743848944,-374.863466,0.00013699,2]
[420165870,1775743848954,-151.0,0.00013699,2]
[420165871,1775743848964,-374.863466,0.00013699,2]
[420165872,1775743848974,-151.0,0.00013699,2]
[420165873,1775743848984,-374.863466,0.00013699,2]
[420165874,1775743848994,-151.0,0.00013699,2]
[420165875,1775743849004,-374.863466,0.00013699,2]
[420165876,1775743849014,-732.051663,0.00013699,2]
[420165877,1775743849025,-732.051663,0.00013699,2]
[420165878,1775743849035,-151.0,0.00013699,2]
[420165879,1775743849045,-732.051663,0.00013699,2]
[420165880,1775743849055,-732.051663,0.00013699,2]
[420165881,1775743849066,-151.0,0.00013699,2]
[420165882,1775743849076,-234.296553,0.00013699,2]
[420165883,1775743849086,-638.203652,0.00013699,2]
[420165884,1775743849101,-151.0,0.00013699,2]
[420165885,1775743849111,-151.0,0.00013699,2]
[420165886,1775743849121,-234.296553,0.00013699,2]
[420165887,1775743849132,-638.203652,0.00013699,2]
[420165888,1775743849142,-151.0,0.00013699,2]
[420165889,1775743849152,-151.0,0.00013699,2]
[420165890,1775743849162,-222.639563,0.00013699,2]
[420165891,1775743849172,-234.296553,0.00013699,2]
[420165892,1775743849181,-638.203652,0.00013699,2]
[420165893,1775743849191,-234.296553,0.00013699,2]
[420165894,1775743849201,-638.203652,0.00013699,2]
[420165895,1775743849211,-1061.006994,0.00013699,2]
[420165896,1775743849222,-846.935034,0.00013699,2]
[420165897,1775743849232,-1061.006994,0.00013699,2]
[420165898,1775743849243,-846.935034,0.00013699,2]
[420165899,1775743849254,-1061.006994,0.00013699,2]
[420165900,1775743849265,-846.935034,0.00013699,2]
[420165901,1775743849275,-151.0,0.00013699,2]
[420165902,1775743849286,-1061.006994,0.00013699,2]
[420165903,1775743849296,-846.935034,0.00013699,2]
[420165904,1775743849307,-151.0,0.00013699,2]
[420165905,1775743849319,-151.0,0.00013699,2]
[420165906,1775743849329,-151.0,0.00013699,2]
[420165907,1775743849341,-151.0,0.00013699,2]
[420165908,1775743849351,-151.0,0.00013699,2]
[420165909,1775743849362,-561.063539,0.00013699,2]
[420165910,1775743849373,-151.0,0.00013699,2]
[420165911,1775743849383,-151.0,0.00013699,2]
[420165912,1775743849394,-561.063539,0.00013699,2]
[420165913,1775743849405,-151.0,0.00013699,2]
[420165914,1775743849415,-561.063539,0.00013699,2]
[420165915,1775743849427,-151.0,0.00013699,2]
[420165916,1775743849438,-561.063539,0.00013699,2]
[420165917,1775743849449,-339.886591,0.00013699,2]
[420165918,1775743849459,-339.886591,0.00013699,2]
[420165919,1775743849470,-522.45862,0.00013699,2]
[420165920,1775743849480,-339.886591,0.00013699,2]
[420165921,1775743849489,-522.45862,0.00013699,2]
[420165922,1775743849499,-339.886591,0.00013699,2]
[420165923,1775743849508,-522.45862,0.00013699,2]
[420165924,1775743849518,-522.45862,0.00013699,2]
[420165925,1775743849527,-364.484352,0.00013699,2]
[420165926,1775743849537,-151.0,0.00013699,2]
[420165927,1775743849546,-364.484352,0.00013699,2]
[420165928,1775743849556,-157.972839,0.00013699,2]
[420165929,1775743849566,-364.484352,0.00013699,2]
[420165930,1775743849575,-3616.812091,0.00013699,2]